{"text_format":"3","workbook":"xlsx","n_sheets":2,"sheets":["Suivi de perte de poids","Calculs"],"not_rendered":{"charts":1,"defined_names":7},"read":"whole","date_system":"1900"}

{"sheet":"Suivi de perte de poids","index":0,"n_rows":129,"n_cols":11,"rows_kept":129,"merged":[[0,5,0,9],[1,6,3,9]]}
[null,"OBJECTIF DE POIDS","VUE GRAPHIQUE",null,null,"SUIVI DE LA PERTE DE POIDS DE KIMBERLY"]
[{"$nulls":6},"SUIVI"]
[null,{"v":172,"d":"172.0"},"HEBDOMADAIRE",{"$nulls":7}," "]
[]
[]
[{"$nulls":10}," "]
{"$rows_empty":18}
[null,"DATE","POIDS"]
[null,"2012-11-30",{"v":176,"d":"176.0"}]
[null,"2012-12-07",{"v":176,"d":"176.0"}]
[null,"2012-12-14",177.6]
[null,"2012-12-21",176.5]
[null,"2012-12-28",176.1]
[null,"2013-01-04",{"v":174,"d":"174.0"}]
[null,"2013-01-11",{"v":173,"d":"173.0"}]
[null,"2013-01-18",{"v":172,"d":"172.0"}]
[null,"2013-01-25",{"v":172,"d":"172.0"}]
[null,"2013-02-01",{"v":173,"d":"173.0"}]
[null,"2013-02-08",{"v":174,"d":"174.0"}]
[null,"2013-02-15",{"v":175,"d":"175.0"}]
[null,"2013-02-22"]
[null,"2013-03-01"]
[null,"2013-03-08"]
[null,"2013-03-15"]
[null,"2013-03-22"]
[null,"2013-03-29"]
[null,"2013-04-05"]
[null,"2013-04-12"]
[null,"2013-04-19"]
[null,"2013-04-26"]
[null,"2013-05-03"]
[null,"2013-05-10"]
[null,"2013-05-17"]
[null,"2013-05-24"]
[null,"2013-05-31"]
[null,"2013-06-07"]
[null,"2013-06-14"]
[null,"2013-06-21"]
[null,"2013-06-28"]
[null,"2013-07-05"]
[null,"2013-07-12"]
[null,"2013-07-19"]
[null,"2013-07-26"]
[null,"2013-08-02"]
[null,"2013-08-09"]
[null,"2013-08-16"]
[null,"2013-08-23"]
[null,"2013-08-30"]
[null,"2013-09-06"]
[null,"2013-09-13"]
[null,"2013-09-20"]
[null,"2013-09-27"]
[null,"2013-10-04"]
[null,"2013-10-11"]
[null,"2013-10-18"]
[null,"2013-10-25"]
[null,"2013-11-01"]
[null,"2013-11-08"]
[null,"2013-11-15"]
[null,"2013-11-22"]
[null,"2013-11-29"]
[null,"2013-12-06"]
[null,"2013-12-13"]
[null,"2013-12-20"]
[null,"2013-12-27"]
[null,"2014-01-03"]
[null,"2014-01-10"]
[null,"2014-01-17"]
[null,"2014-01-24"]
[null,"2014-01-31"]
[null,"2014-02-07"]
[null,"2014-02-14"]
[null,"2014-02-21"]
[null,"2014-02-28"]
[null,"2014-03-07"]
[null,"2014-03-14"]
[null,"2014-03-21"]
[null,"2014-03-28"]
[null,"2014-04-04"]
[null,"2014-04-11"]
[null,"2014-04-18"]
[null,"2014-04-25"]
[null,"2014-05-02"]
[null,"2014-05-09"]
[null,"2014-05-16"]
[null,"2014-05-23"]
[null,"2014-05-30"]
[null,"2014-06-06"]
[null,"2014-06-13"]
[null,"2014-06-20"]
[null,"2014-06-27"]
[null,"2014-07-04"]
[null,"2014-07-11"]
[null,"2014-07-18"]
[null,"2014-07-25"]
[null,"2014-08-01"]
[null,"2014-08-08"]
[null,"2014-08-15"]
[null,"2014-08-22"]
[null,"2014-08-29"]
[null,"2014-09-05"]
[null,"2014-09-12"]
[null,"2014-09-19"]
[null,"2014-09-26"]
[null,"2014-10-03"]
[null,"2014-10-10"]
[null,"2014-10-17"]
[null,"2014-10-24"]
[null,"2014-10-31"]
[null,"2014-11-07"]
[null,"2014-11-14"]
[null,"2014-11-21"]

{"sheet":"Calculs","index":1,"n_rows":108,"n_cols":17,"rows_kept":108,"hidden":true}
["*** Cette feuille doit rester masquée ***"]
[]
[{"$f":"COUNTIF(A5:A108,FALSE)","v":13},"Périodes","Valeurs",{"$nulls":3},{"$f":"COUNTIF(H5:H28,\">\"&0)","v":4},"Périodes",null,"Valeurs"]
[null,"Semaine",null,null,true,null,null,"Mois","FIN DU MOIS"]
[{"$f":"IF(('Suivi de perte de poids'!C26=0)*('Suivi de perte de poids'!C25=0),TRUE)","v":false},{"$f":"IF(A5,0,IF('Suivi de perte de poids'!B26=0,'Suivi de perte de poids'!B25+5,'Suivi de perte de poids'!B26))","v":"2012-11-30"},{"$f":"'Suivi de perte de poids'!C26","v":176},{"$f":"MIN(PériodesGraphique)","v":"2012-11-30"},{"$f":"IF($E$4,ObjectifPoids,NA())","v":172},null,null,{"$f":"DATE(YEAR(B5),MONTH(B5),1)","v":"2012-11-01"},{"$f":"EOMONTH(H5,0)","v":"2012-11-30"},{"$f":"IFERROR(AVERAGEIFS(TableauPoids[POIDS],TableauPoids[DATE],\">=\"&H5,TableauPoids[DATE],\"<=\"&I5),NA())","v":176}]
[{"$f":"IF(('Suivi de perte de poids'!C27=0)*('Suivi de perte de poids'!C26=0),TRUE)","v":false},{"$f":"IF(A6,0,IF('Suivi de perte de poids'!B27=0,'Suivi de perte de poids'!B26+5,'Suivi de perte de poids'!B27))","v":"2012-12-07"},{"$f":"'Suivi de perte de poids'!C27","v":176},{"$f":"MAX(PériodesGraphique)","v":"2013-02-22"},172,null,null,{"$f":"IF(I5+1>MAX($B:$B),NA(),I5+1)","v":"2012-12-01"},"2012-12-31",{"$f":"IFERROR(AVERAGEIFS(TableauPoids[POIDS],TableauPoids[DATE],\">=\"&H6,TableauPoids[DATE],\"<=\"&I6),NA())","v":176.55}]
[{"$f":"IF(('Suivi de perte de poids'!C28=0)*('Suivi de perte de poids'!C27=0),TRUE)","v":false},{"$f":"IF(A7,0,IF('Suivi de perte de poids'!B28=0,'Suivi de perte de poids'!B27+5,'Suivi de perte de poids'!B28))","v":"2012-12-14"},{"$f":"'Suivi de perte de poids'!C28","v":177.6},{"$nulls":4},{"$f":"IF(I6+1>MAX($B:$B),NA(),I6+1)","v":"2013-01-01"},"2013-01-31",{"$f":"IFERROR(AVERAGEIFS(TableauPoids[POIDS],TableauPoids[DATE],\">=\"&H7,TableauPoids[DATE],\"<=\"&I7),NA())","v":172.75}]
[{"$f":"IF(('Suivi de perte de poids'!C29=0)*('Suivi de perte de poids'!C28=0),TRUE)","v":false},{"$f":"IF(A8,0,IF('Suivi de perte de poids'!B29=0,'Suivi de perte de poids'!B28+5,'Suivi de perte de poids'!B29))","v":"2012-12-21"},{"$f":"'Suivi de perte de poids'!C29","v":176.5},{"$nulls":4},"2013-02-01","2013-02-28",{"$f":"IFERROR(AVERAGEIFS(TableauPoids[POIDS],TableauPoids[DATE],\">=\"&H8,TableauPoids[DATE],\"<=\"&I8),NA())","v":174}]
[{"$f":"IF(('Suivi de perte de poids'!C30=0)*('Suivi de perte de poids'!C29=0),TRUE)","v":false},{"$f":"IF(A9,0,IF('Suivi de perte de poids'!B30=0,'Suivi de perte de poids'!B29+5,'Suivi de perte de poids'!B30))","v":"2012-12-28"},{"$f":"'Suivi de perte de poids'!C30","v":176.1},{"$nulls":4},{"$error":"#N/A"},{"$error":"#N/A"},{"$f":"IFERROR(AVERAGEIFS(TableauPoids[POIDS],TableauPoids[DATE],\">=\"&H9,TableauPoids[DATE],\"<=\"&I9),NA())","v":{"$error":"#N/A"}}]
[{"$f":"IF(('Suivi de perte de poids'!C31=0)*('Suivi de perte de poids'!C30=0),TRUE)","v":false},{"$f":"IF(A10,0,IF('Suivi de perte de poids'!B31=0,'Suivi de perte de poids'!B30+5,'Suivi de perte de poids'!B31))","v":"2013-01-04"},{"$f":"'Suivi de perte de poids'!C31","v":174},{"$nulls":4},{"$error":"#N/A"},{"$error":"#N/A"},{"$f":"IFERROR(AVERAGEIFS(TableauPoids[POIDS],TableauPoids[DATE],\">=\"&H10,TableauPoids[DATE],\"<=\"&I10),NA())","v":{"$error":"#N/A"}}]
[{"$f":"IF(('Suivi de perte de poids'!C32=0)*('Suivi de perte de poids'!C31=0),TRUE)","v":false},{"$f":"IF(A11,0,IF('Suivi de perte de poids'!B32=0,'Suivi de perte de poids'!B31+5,'Suivi de perte de poids'!B32))","v":"2013-01-11"},{"$f":"'Suivi de perte de poids'!C32","v":173},{"$nulls":4},{"$error":"#N/A"},{"$error":"#N/A"},{"$f":"IFERROR(AVERAGEIFS(TableauPoids[POIDS],TableauPoids[DATE],\">=\"&H11,TableauPoids[DATE],\"<=\"&I11),NA())","v":{"$error":"#N/A"}},{"$nulls":6},{"$f":"MAX($B:$B)","v":"2013-02-22"}]
[{"$f":"IF(('Suivi de perte de poids'!C33=0)*('Suivi de perte de poids'!C32=0),TRUE)","v":false},{"$f":"IF(A12,0,IF('Suivi de perte de poids'!B33=0,'Suivi de perte de poids'!B32+5,'Suivi de perte de poids'!B33))","v":"2013-01-18"},{"$f":"'Suivi de perte de poids'!C33","v":172},{"$nulls":4},{"$error":"#N/A"},{"$error":"#N/A"},{"$f":"IFERROR(AVERAGEIFS(TableauPoids[POIDS],TableauPoids[DATE],\">=\"&H12,TableauPoids[DATE],\"<=\"&I12),NA())","v":{"$error":"#N/A"}}]
[{"$f":"IF(('Suivi de perte de poids'!C34=0)*('Suivi de perte de poids'!C33=0),TRUE)","v":false},{"$f":"IF(A13,0,IF('Suivi de perte de poids'!B34=0,'Suivi de perte de poids'!B33+5,'Suivi de perte de poids'!B34))","v":"2013-01-25"},{"$f":"'Suivi de perte de poids'!C34","v":172},{"$nulls":4},{"$error":"#N/A"},{"$error":"#N/A"},{"$f":"IFERROR(AVERAGEIFS(TableauPoids[POIDS],TableauPoids[DATE],\">=\"&H13,TableauPoids[DATE],\"<=\"&I13),NA())","v":{"$error":"#N/A"}}]
[{"$f":"IF(('Suivi de perte de poids'!C35=0)*('Suivi de perte de poids'!C34=0),TRUE)","v":false},{"$f":"IF(A14,0,IF('Suivi de perte de poids'!B35=0,'Suivi de perte de poids'!B34+5,'Suivi de perte de poids'!B35))","v":"2013-02-01"},{"$f":"'Suivi de perte de poids'!C35","v":173},{"$nulls":4},{"$error":"#N/A"},{"$error":"#N/A"},{"$f":"IFERROR(AVERAGEIFS(TableauPoids[POIDS],TableauPoids[DATE],\">=\"&H14,TableauPoids[DATE],\"<=\"&I14),NA())","v":{"$error":"#N/A"}}]
[{"$f":"IF(('Suivi de perte de poids'!C36=0)*('Suivi de perte de poids'!C35=0),TRUE)","v":false},{"$f":"IF(A15,0,IF('Suivi de perte de poids'!B36=0,'Suivi de perte de poids'!B35+5,'Suivi de perte de poids'!B36))","v":"2013-02-08"},{"$f":"'Suivi de perte de poids'!C36","v":174},{"$nulls":4},{"$error":"#N/A"},{"$error":"#N/A"},{"$f":"IFERROR(AVERAGEIFS(TableauPoids[POIDS],TableauPoids[DATE],\">=\"&H15,TableauPoids[DATE],\"<=\"&I15),NA())","v":{"$error":"#N/A"}}]
[{"$f":"IF(('Suivi de perte de poids'!C37=0)*('Suivi de perte de poids'!C36=0),TRUE)","v":false},{"$f":"IF(A16,0,IF('Suivi de perte de poids'!B37=0,'Suivi de perte de poids'!B36+5,'Suivi de perte de poids'!B37))","v":"2013-02-15"},{"$f":"'Suivi de perte de poids'!C37","v":175},{"$nulls":4},{"$error":"#N/A"},{"$error":"#N/A"},{"$f":"IFERROR(AVERAGEIFS(TableauPoids[POIDS],TableauPoids[DATE],\">=\"&H16,TableauPoids[DATE],\"<=\"&I16),NA())","v":{"$error":"#N/A"}}]
[{"$f":"IF(('Suivi de perte de poids'!C38=0)*('Suivi de perte de poids'!C37=0),TRUE)","v":false},{"$f":"IF(A17,0,IF('Suivi de perte de poids'!B38=0,'Suivi de perte de poids'!B37+5,'Suivi de perte de poids'!B38))","v":"2013-02-22"},{"$f":"'Suivi de perte de poids'!C38","v":0},{"$nulls":4},{"$error":"#N/A"},{"$error":"#N/A"},{"$f":"IFERROR(AVERAGEIFS(TableauPoids[POIDS],TableauPoids[DATE],\">=\"&H17,TableauPoids[DATE],\"<=\"&I17),NA())","v":{"$error":"#N/A"}}]
[{"$f":"IF(('Suivi de perte de poids'!C39=0)*('Suivi de perte de poids'!C38=0),TRUE)","v":true},{"$f":"IF(A18,0,IF('Suivi de perte de poids'!B39=0,'Suivi de perte de poids'!B38+5,'Suivi de perte de poids'!B39))","v":"00:00:00"},{"$f":"'Suivi de perte de poids'!C39","v":0},{"$nulls":4},{"$error":"#N/A"},{"$error":"#N/A"},{"$f":"IFERROR(AVERAGEIFS(TableauPoids[POIDS],TableauPoids[DATE],\">=\"&H18,TableauPoids[DATE],\"<=\"&I18),NA())","v":{"$error":"#N/A"}}]
[{"$f":"IF(('Suivi de perte de poids'!C40=0)*('Suivi de perte de poids'!C39=0),TRUE)","v":true},{"$f":"IF(A19,0,IF('Suivi de perte de poids'!B40=0,'Suivi de perte de poids'!B39+5,'Suivi de perte de poids'!B40))","v":"00:00:00"},{"$f":"'Suivi de perte de poids'!C40","v":0},{"$nulls":4},{"$error":"#N/A"},{"$error":"#N/A"},{"$f":"IFERROR(AVERAGEIFS(TableauPoids[POIDS],TableauPoids[DATE],\">=\"&H19,TableauPoids[DATE],\"<=\"&I19),NA())","v":{"$error":"#N/A"}}]
[{"$f":"IF(('Suivi de perte de poids'!C41=0)*('Suivi de perte de poids'!C40=0),TRUE)","v":true},{"$f":"IF(A20,0,IF('Suivi de perte de poids'!B41=0,'Suivi de perte de poids'!B40+5,'Suivi de perte de poids'!B41))","v":"00:00:00"},{"$f":"'Suivi de perte de poids'!C41","v":0},{"$nulls":4},{"$error":"#N/A"},{"$error":"#N/A"},{"$f":"IFERROR(AVERAGEIFS(TableauPoids[POIDS],TableauPoids[DATE],\">=\"&H20,TableauPoids[DATE],\"<=\"&I20),NA())","v":{"$error":"#N/A"}}]
[{"$f":"IF(('Suivi de perte de poids'!C42=0)*('Suivi de perte de poids'!C41=0),TRUE)","v":true},{"$f":"IF(A21,0,IF('Suivi de perte de poids'!B42=0,'Suivi de perte de poids'!B41+5,'Suivi de perte de poids'!B42))","v":"00:00:00"},{"$f":"'Suivi de perte de poids'!C42","v":0},{"$nulls":4},{"$error":"#N/A"},{"$error":"#N/A"},{"$f":"IFERROR(AVERAGEIFS(TableauPoids[POIDS],TableauPoids[DATE],\">=\"&H21,TableauPoids[DATE],\"<=\"&I21),NA())","v":{"$error":"#N/A"}}]
[{"$f":"IF(('Suivi de perte de poids'!C43=0)*('Suivi de perte de poids'!C42=0),TRUE)","v":true},{"$f":"IF(A22,0,IF('Suivi de perte de poids'!B43=0,'Suivi de perte de poids'!B42+5,'Suivi de perte de poids'!B43))","v":"00:00:00"},{"$f":"'Suivi de perte de poids'!C43","v":0},{"$nulls":4},{"$error":"#N/A"},{"$error":"#N/A"},{"$f":"IFERROR(AVERAGEIFS(TableauPoids[POIDS],TableauPoids[DATE],\">=\"&H22,TableauPoids[DATE],\"<=\"&I22),NA())","v":{"$error":"#N/A"}}]
[{"$f":"IF(('Suivi de perte de poids'!C44=0)*('Suivi de perte de poids'!C43=0),TRUE)","v":true},{"$f":"IF(A23,0,IF('Suivi de perte de poids'!B44=0,'Suivi de perte de poids'!B43+5,'Suivi de perte de poids'!B44))","v":"00:00:00"},{"$f":"'Suivi de perte de poids'!C44","v":0},{"$nulls":4},{"$error":"#N/A"},{"$error":"#N/A"},{"$f":"IFERROR(AVERAGEIFS(TableauPoids[POIDS],TableauPoids[DATE],\">=\"&H23,TableauPoids[DATE],\"<=\"&I23),NA())","v":{"$error":"#N/A"}}]
[{"$f":"IF(('Suivi de perte de poids'!C45=0)*('Suivi de perte de poids'!C44=0),TRUE)","v":true},{"$f":"IF(A24,0,IF('Suivi de perte de poids'!B45=0,'Suivi de perte de poids'!B44+5,'Suivi de perte de poids'!B45))","v":"00:00:00"},{"$f":"'Suivi de perte de poids'!C45","v":0},{"$nulls":4},{"$error":"#N/A"},{"$error":"#N/A"},{"$f":"IFERROR(AVERAGEIFS(TableauPoids[POIDS],TableauPoids[DATE],\">=\"&H24,TableauPoids[DATE],\"<=\"&I24),NA())","v":{"$error":"#N/A"}}]
[{"$f":"IF(('Suivi de perte de poids'!C46=0)*('Suivi de perte de poids'!C45=0),TRUE)","v":true},{"$f":"IF(A25,0,IF('Suivi de perte de poids'!B46=0,'Suivi de perte de poids'!B45+5,'Suivi de perte de poids'!B46))","v":"00:00:00"},{"$f":"'Suivi de perte de poids'!C46","v":0},{"$nulls":4},{"$error":"#N/A"},{"$error":"#N/A"},{"$f":"IFERROR(AVERAGEIFS(TableauPoids[POIDS],TableauPoids[DATE],\">=\"&H25,TableauPoids[DATE],\"<=\"&I25),NA())","v":{"$error":"#N/A"}}]
[{"$f":"IF(('Suivi de perte de poids'!C47=0)*('Suivi de perte de poids'!C46=0),TRUE)","v":true},{"$f":"IF(A26,0,IF('Suivi de perte de poids'!B47=0,'Suivi de perte de poids'!B46+5,'Suivi de perte de poids'!B47))","v":"00:00:00"},{"$f":"'Suivi de perte de poids'!C47","v":0},{"$nulls":4},{"$error":"#N/A"},{"$error":"#N/A"},{"$f":"IFERROR(AVERAGEIFS(TableauPoids[POIDS],TableauPoids[DATE],\">=\"&H26,TableauPoids[DATE],\"<=\"&I26),NA())","v":{"$error":"#N/A"}}]
[{"$f":"IF(('Suivi de perte de poids'!C48=0)*('Suivi de perte de poids'!C47=0),TRUE)","v":true},{"$f":"IF(A27,0,IF('Suivi de perte de poids'!B48=0,'Suivi de perte de poids'!B47+5,'Suivi de perte de poids'!B48))","v":"00:00:00"},{"$f":"'Suivi de perte de poids'!C48","v":0},{"$nulls":4},{"$error":"#N/A"},{"$error":"#N/A"},{"$f":"IFERROR(AVERAGEIFS(TableauPoids[POIDS],TableauPoids[DATE],\">=\"&H27,TableauPoids[DATE],\"<=\"&I27),NA())","v":{"$error":"#N/A"}}]
[{"$f":"IF(('Suivi de perte de poids'!C49=0)*('Suivi de perte de poids'!C48=0),TRUE)","v":true},{"$f":"IF(A28,0,IF('Suivi de perte de poids'!B49=0,'Suivi de perte de poids'!B48+5,'Suivi de perte de poids'!B49))","v":"00:00:00"},{"$f":"'Suivi de perte de poids'!C49","v":0},{"$nulls":4},{"$error":"#N/A"},{"$error":"#N/A"},{"$f":"IFERROR(AVERAGEIFS(TableauPoids[POIDS],TableauPoids[DATE],\">=\"&H28,TableauPoids[DATE],\"<=\"&I28),NA())","v":{"$error":"#N/A"}}]
[{"$f":"IF(('Suivi de perte de poids'!C50=0)*('Suivi de perte de poids'!C49=0),TRUE)","v":true},{"$f":"IF(A29,0,IF('Suivi de perte de poids'!B50=0,'Suivi de perte de poids'!B49+5,'Suivi de perte de poids'!B50))","v":"00:00:00"},{"$f":"'Suivi de perte de poids'!C50","v":0}]
[{"$f":"IF(('Suivi de perte de poids'!C51=0)*('Suivi de perte de poids'!C50=0),TRUE)","v":true},{"$f":"IF(A30,0,IF('Suivi de perte de poids'!B51=0,'Suivi de perte de poids'!B50+5,'Suivi de perte de poids'!B51))","v":"00:00:00"},{"$f":"'Suivi de perte de poids'!C51","v":0}]
[{"$f":"IF(('Suivi de perte de poids'!C52=0)*('Suivi de perte de poids'!C51=0),TRUE)","v":true},{"$f":"IF(A31,0,IF('Suivi de perte de poids'!B52=0,'Suivi de perte de poids'!B51+5,'Suivi de perte de poids'!B52))","v":"00:00:00"},{"$f":"'Suivi de perte de poids'!C52","v":0}]
[{"$f":"IF(('Suivi de perte de poids'!C53=0)*('Suivi de perte de poids'!C52=0),TRUE)","v":true},{"$f":"IF(A32,0,IF('Suivi de perte de poids'!B53=0,'Suivi de perte de poids'!B52+5,'Suivi de perte de poids'!B53))","v":"00:00:00"},{"$f":"'Suivi de perte de poids'!C53","v":0}]
[{"$f":"IF(('Suivi de perte de poids'!C54=0)*('Suivi de perte de poids'!C53=0),TRUE)","v":true},{"$f":"IF(A33,0,IF('Suivi de perte de poids'!B54=0,'Suivi de perte de poids'!B53+5,'Suivi de perte de poids'!B54))","v":"00:00:00"},{"$f":"'Suivi de perte de poids'!C54","v":0}]
[{"$f":"IF(('Suivi de perte de poids'!C55=0)*('Suivi de perte de poids'!C54=0),TRUE)","v":true},{"$f":"IF(A34,0,IF('Suivi de perte de poids'!B55=0,'Suivi de perte de poids'!B54+5,'Suivi de perte de poids'!B55))","v":"00:00:00"},{"$f":"'Suivi de perte de poids'!C55","v":0}]
[{"$f":"IF(('Suivi de perte de poids'!C56=0)*('Suivi de perte de poids'!C55=0),TRUE)","v":true},{"$f":"IF(A35,0,IF('Suivi de perte de poids'!B56=0,'Suivi de perte de poids'!B55+5,'Suivi de perte de poids'!B56))","v":"00:00:00"},{"$f":"'Suivi de perte de poids'!C56","v":0}]
[{"$f":"IF(('Suivi de perte de poids'!C57=0)*('Suivi de perte de poids'!C56=0),TRUE)","v":true},{"$f":"IF(A36,0,IF('Suivi de perte de poids'!B57=0,'Suivi de perte de poids'!B56+5,'Suivi de perte de poids'!B57))","v":"00:00:00"},{"$f":"'Suivi de perte de poids'!C57","v":0}]
[{"$f":"IF(('Suivi de perte de poids'!C58=0)*('Suivi de perte de poids'!C57=0),TRUE)","v":true},{"$f":"IF(A37,0,IF('Suivi de perte de poids'!B58=0,'Suivi de perte de poids'!B57+5,'Suivi de perte de poids'!B58))","v":"00:00:00"},{"$f":"'Suivi de perte de poids'!C58","v":0}]
[{"$f":"IF(('Suivi de perte de poids'!C59=0)*('Suivi de perte de poids'!C58=0),TRUE)","v":true},{"$f":"IF(A38,0,IF('Suivi de perte de poids'!B59=0,'Suivi de perte de poids'!B58+5,'Suivi de perte de poids'!B59))","v":"00:00:00"},{"$f":"'Suivi de perte de poids'!C59","v":0}]
[{"$f":"IF(('Suivi de perte de poids'!C60=0)*('Suivi de perte de poids'!C59=0),TRUE)","v":true},{"$f":"IF(A39,0,IF('Suivi de perte de poids'!B60=0,'Suivi de perte de poids'!B59+5,'Suivi de perte de poids'!B60))","v":"00:00:00"},{"$f":"'Suivi de perte de poids'!C60","v":0}]
[{"$f":"IF(('Suivi de perte de poids'!C61=0)*('Suivi de perte de poids'!C60=0),TRUE)","v":true},{"$f":"IF(A40,0,IF('Suivi de perte de poids'!B61=0,'Suivi de perte de poids'!B60+5,'Suivi de perte de poids'!B61))","v":"00:00:00"},{"$f":"'Suivi de perte de poids'!C61","v":0}]
[{"$f":"IF(('Suivi de perte de poids'!C62=0)*('Suivi de perte de poids'!C61=0),TRUE)","v":true},{"$f":"IF(A41,0,IF('Suivi de perte de poids'!B62=0,'Suivi de perte de poids'!B61+5,'Suivi de perte de poids'!B62))","v":"00:00:00"},{"$f":"'Suivi de perte de poids'!C62","v":0}]
[{"$f":"IF(('Suivi de perte de poids'!C63=0)*('Suivi de perte de poids'!C62=0),TRUE)","v":true},{"$f":"IF(A42,0,IF('Suivi de perte de poids'!B63=0,'Suivi de perte de poids'!B62+5,'Suivi de perte de poids'!B63))","v":"00:00:00"},{"$f":"'Suivi de perte de poids'!C63","v":0}]
[{"$f":"IF(('Suivi de perte de poids'!C64=0)*('Suivi de perte de poids'!C63=0),TRUE)","v":true},{"$f":"IF(A43,0,IF('Suivi de perte de poids'!B64=0,'Suivi de perte de poids'!B63+5,'Suivi de perte de poids'!B64))","v":"00:00:00"},{"$f":"'Suivi de perte de poids'!C64","v":0}]
[{"$f":"IF(('Suivi de perte de poids'!C65=0)*('Suivi de perte de poids'!C64=0),TRUE)","v":true},{"$f":"IF(A44,0,IF('Suivi de perte de poids'!B65=0,'Suivi de perte de poids'!B64+5,'Suivi de perte de poids'!B65))","v":"00:00:00"},{"$f":"'Suivi de perte de poids'!C65","v":0}]
[{"$f":"IF(('Suivi de perte de poids'!C66=0)*('Suivi de perte de poids'!C65=0),TRUE)","v":true},{"$f":"IF(A45,0,IF('Suivi de perte de poids'!B66=0,'Suivi de perte de poids'!B65+5,'Suivi de perte de poids'!B66))","v":"00:00:00"},{"$f":"'Suivi de perte de poids'!C66","v":0}]
[{"$f":"IF(('Suivi de perte de poids'!C67=0)*('Suivi de perte de poids'!C66=0),TRUE)","v":true},{"$f":"IF(A46,0,IF('Suivi de perte de poids'!B67=0,'Suivi de perte de poids'!B66+5,'Suivi de perte de poids'!B67))","v":"00:00:00"},{"$f":"'Suivi de perte de poids'!C67","v":0}]
[{"$f":"IF(('Suivi de perte de poids'!C68=0)*('Suivi de perte de poids'!C67=0),TRUE)","v":true},{"$f":"IF(A47,0,IF('Suivi de perte de poids'!B68=0,'Suivi de perte de poids'!B67+5,'Suivi de perte de poids'!B68))","v":"00:00:00"},{"$f":"'Suivi de perte de poids'!C68","v":0}]
[{"$f":"IF(('Suivi de perte de poids'!C69=0)*('Suivi de perte de poids'!C68=0),TRUE)","v":true},{"$f":"IF(A48,0,IF('Suivi de perte de poids'!B69=0,'Suivi de perte de poids'!B68+5,'Suivi de perte de poids'!B69))","v":"00:00:00"},{"$f":"'Suivi de perte de poids'!C69","v":0}]
[{"$f":"IF(('Suivi de perte de poids'!C70=0)*('Suivi de perte de poids'!C69=0),TRUE)","v":true},{"$f":"IF(A49,0,IF('Suivi de perte de poids'!B70=0,'Suivi de perte de poids'!B69+5,'Suivi de perte de poids'!B70))","v":"00:00:00"},{"$f":"'Suivi de perte de poids'!C70","v":0}]
[{"$f":"IF(('Suivi de perte de poids'!C71=0)*('Suivi de perte de poids'!C70=0),TRUE)","v":true},{"$f":"IF(A50,0,IF('Suivi de perte de poids'!B71=0,'Suivi de perte de poids'!B70+5,'Suivi de perte de poids'!B71))","v":"00:00:00"},{"$f":"'Suivi de perte de poids'!C71","v":0}]
[{"$f":"IF(('Suivi de perte de poids'!C72=0)*('Suivi de perte de poids'!C71=0),TRUE)","v":true},{"$f":"IF(A51,0,IF('Suivi de perte de poids'!B72=0,'Suivi de perte de poids'!B71+5,'Suivi de perte de poids'!B72))","v":"00:00:00"},{"$f":"'Suivi de perte de poids'!C72","v":0}]
[{"$f":"IF(('Suivi de perte de poids'!C73=0)*('Suivi de perte de poids'!C72=0),TRUE)","v":true},{"$f":"IF(A52,0,IF('Suivi de perte de poids'!B73=0,'Suivi de perte de poids'!B72+5,'Suivi de perte de poids'!B73))","v":"00:00:00"},{"$f":"'Suivi de perte de poids'!C73","v":0}]
[{"$f":"IF(('Suivi de perte de poids'!C74=0)*('Suivi de perte de poids'!C73=0),TRUE)","v":true},{"$f":"IF(A53,0,IF('Suivi de perte de poids'!B74=0,'Suivi de perte de poids'!B73+5,'Suivi de perte de poids'!B74))","v":"00:00:00"},{"$f":"'Suivi de perte de poids'!C74","v":0}]
[{"$f":"IF(('Suivi de perte de poids'!C75=0)*('Suivi de perte de poids'!C74=0),TRUE)","v":true},{"$f":"IF(A54,0,IF('Suivi de perte de poids'!B75=0,'Suivi de perte de poids'!B74+5,'Suivi de perte de poids'!B75))","v":"00:00:00"},{"$f":"'Suivi de perte de poids'!C75","v":0}]
[{"$f":"IF(('Suivi de perte de poids'!C76=0)*('Suivi de perte de poids'!C75=0),TRUE)","v":true},{"$f":"IF(A55,0,IF('Suivi de perte de poids'!B76=0,'Suivi de perte de poids'!B75+5,'Suivi de perte de poids'!B76))","v":"00:00:00"},{"$f":"'Suivi de perte de poids'!C76","v":0}]
[{"$f":"IF(('Suivi de perte de poids'!C77=0)*('Suivi de perte de poids'!C76=0),TRUE)","v":true},{"$f":"IF(A56,0,IF('Suivi de perte de poids'!B77=0,'Suivi de perte de poids'!B76+5,'Suivi de perte de poids'!B77))","v":"00:00:00"},{"$f":"'Suivi de perte de poids'!C77","v":0}]
[{"$f":"IF(('Suivi de perte de poids'!C78=0)*('Suivi de perte de poids'!C77=0),TRUE)","v":true},{"$f":"IF(A57,0,IF('Suivi de perte de poids'!B78=0,'Suivi de perte de poids'!B77+5,'Suivi de perte de poids'!B78))","v":"00:00:00"},{"$f":"'Suivi de perte de poids'!C78","v":0}]
[{"$f":"IF(('Suivi de perte de poids'!C79=0)*('Suivi de perte de poids'!C78=0),TRUE)","v":true},{"$f":"IF(A58,0,IF('Suivi de perte de poids'!B79=0,'Suivi de perte de poids'!B78+5,'Suivi de perte de poids'!B79))","v":"00:00:00"},{"$f":"'Suivi de perte de poids'!C79","v":0}]
[{"$f":"IF(('Suivi de perte de poids'!C80=0)*('Suivi de perte de poids'!C79=0),TRUE)","v":true},{"$f":"IF(A59,0,IF('Suivi de perte de poids'!B80=0,'Suivi de perte de poids'!B79+5,'Suivi de perte de poids'!B80))","v":"00:00:00"},{"$f":"'Suivi de perte de poids'!C80","v":0}]
[{"$f":"IF(('Suivi de perte de poids'!C81=0)*('Suivi de perte de poids'!C80=0),TRUE)","v":true},{"$f":"IF(A60,0,IF('Suivi de perte de poids'!B81=0,'Suivi de perte de poids'!B80+5,'Suivi de perte de poids'!B81))","v":"00:00:00"},{"$f":"'Suivi de perte de poids'!C81","v":0}]
[{"$f":"IF(('Suivi de perte de poids'!C82=0)*('Suivi de perte de poids'!C81=0),TRUE)","v":true},{"$f":"IF(A61,0,IF('Suivi de perte de poids'!B82=0,'Suivi de perte de poids'!B81+5,'Suivi de perte de poids'!B82))","v":"00:00:00"},{"$f":"'Suivi de perte de poids'!C82","v":0}]
[{"$f":"IF(('Suivi de perte de poids'!C83=0)*('Suivi de perte de poids'!C82=0),TRUE)","v":true},{"$f":"IF(A62,0,IF('Suivi de perte de poids'!B83=0,'Suivi de perte de poids'!B82+5,'Suivi de perte de poids'!B83))","v":"00:00:00"},{"$f":"'Suivi de perte de poids'!C83","v":0}]
[{"$f":"IF(('Suivi de perte de poids'!C84=0)*('Suivi de perte de poids'!C83=0),TRUE)","v":true},{"$f":"IF(A63,0,IF('Suivi de perte de poids'!B84=0,'Suivi de perte de poids'!B83+5,'Suivi de perte de poids'!B84))","v":"00:00:00"},{"$f":"'Suivi de perte de poids'!C84","v":0}]
[{"$f":"IF(('Suivi de perte de poids'!C85=0)*('Suivi de perte de poids'!C84=0),TRUE)","v":true},{"$f":"IF(A64,0,IF('Suivi de perte de poids'!B85=0,'Suivi de perte de poids'!B84+5,'Suivi de perte de poids'!B85))","v":"00:00:00"},{"$f":"'Suivi de perte de poids'!C85","v":0}]
[{"$f":"IF(('Suivi de perte de poids'!C86=0)*('Suivi de perte de poids'!C85=0),TRUE)","v":true},{"$f":"IF(A65,0,IF('Suivi de perte de poids'!B86=0,'Suivi de perte de poids'!B85+5,'Suivi de perte de poids'!B86))","v":"00:00:00"},{"$f":"'Suivi de perte de poids'!C86","v":0}]
[{"$f":"IF(('Suivi de perte de poids'!C87=0)*('Suivi de perte de poids'!C86=0),TRUE)","v":true},{"$f":"IF(A66,0,IF('Suivi de perte de poids'!B87=0,'Suivi de perte de poids'!B86+5,'Suivi de perte de poids'!B87))","v":"00:00:00"},{"$f":"'Suivi de perte de poids'!C87","v":0}]
[{"$f":"IF(('Suivi de perte de poids'!C88=0)*('Suivi de perte de poids'!C87=0),TRUE)","v":true},{"$f":"IF(A67,0,IF('Suivi de perte de poids'!B88=0,'Suivi de perte de poids'!B87+5,'Suivi de perte de poids'!B88))","v":"00:00:00"},{"$f":"'Suivi de perte de poids'!C88","v":0}]
[{"$f":"IF(('Suivi de perte de poids'!C89=0)*('Suivi de perte de poids'!C88=0),TRUE)","v":true},{"$f":"IF(A68,0,IF('Suivi de perte de poids'!B89=0,'Suivi de perte de poids'!B88+5,'Suivi de perte de poids'!B89))","v":"00:00:00"},{"$f":"'Suivi de perte de poids'!C89","v":0}]
[{"$f":"IF(('Suivi de perte de poids'!C90=0)*('Suivi de perte de poids'!C89=0),TRUE)","v":true},{"$f":"IF(A69,0,IF('Suivi de perte de poids'!B90=0,'Suivi de perte de poids'!B89+5,'Suivi de perte de poids'!B90))","v":"00:00:00"},{"$f":"'Suivi de perte de poids'!C90","v":0}]
[{"$f":"IF(('Suivi de perte de poids'!C91=0)*('Suivi de perte de poids'!C90=0),TRUE)","v":true},{"$f":"IF(A70,0,IF('Suivi de perte de poids'!B91=0,'Suivi de perte de poids'!B90+5,'Suivi de perte de poids'!B91))","v":"00:00:00"},{"$f":"'Suivi de perte de poids'!C91","v":0}]
[{"$f":"IF(('Suivi de perte de poids'!C92=0)*('Suivi de perte de poids'!C91=0),TRUE)","v":true},{"$f":"IF(A71,0,IF('Suivi de perte de poids'!B92=0,'Suivi de perte de poids'!B91+5,'Suivi de perte de poids'!B92))","v":"00:00:00"},{"$f":"'Suivi de perte de poids'!C92","v":0}]
[{"$f":"IF(('Suivi de perte de poids'!C93=0)*('Suivi de perte de poids'!C92=0),TRUE)","v":true},{"$f":"IF(A72,0,IF('Suivi de perte de poids'!B93=0,'Suivi de perte de poids'!B92+5,'Suivi de perte de poids'!B93))","v":"00:00:00"},{"$f":"'Suivi de perte de poids'!C93","v":0}]
[{"$f":"IF(('Suivi de perte de poids'!C94=0)*('Suivi de perte de poids'!C93=0),TRUE)","v":true},{"$f":"IF(A73,0,IF('Suivi de perte de poids'!B94=0,'Suivi de perte de poids'!B93+5,'Suivi de perte de poids'!B94))","v":"00:00:00"},{"$f":"'Suivi de perte de poids'!C94","v":0}]
[{"$f":"IF(('Suivi de perte de poids'!C95=0)*('Suivi de perte de poids'!C94=0),TRUE)","v":true},{"$f":"IF(A74,0,IF('Suivi de perte de poids'!B95=0,'Suivi de perte de poids'!B94+5,'Suivi de perte de poids'!B95))","v":"00:00:00"},{"$f":"'Suivi de perte de poids'!C95","v":0}]
[{"$f":"IF(('Suivi de perte de poids'!C96=0)*('Suivi de perte de poids'!C95=0),TRUE)","v":true},{"$f":"IF(A75,0,IF('Suivi de perte de poids'!B96=0,'Suivi de perte de poids'!B95+5,'Suivi de perte de poids'!B96))","v":"00:00:00"},{"$f":"'Suivi de perte de poids'!C96","v":0}]
[{"$f":"IF(('Suivi de perte de poids'!C97=0)*('Suivi de perte de poids'!C96=0),TRUE)","v":true},{"$f":"IF(A76,0,IF('Suivi de perte de poids'!B97=0,'Suivi de perte de poids'!B96+5,'Suivi de perte de poids'!B97))","v":"00:00:00"},{"$f":"'Suivi de perte de poids'!C97","v":0}]
[{"$f":"IF(('Suivi de perte de poids'!C98=0)*('Suivi de perte de poids'!C97=0),TRUE)","v":true},{"$f":"IF(A77,0,IF('Suivi de perte de poids'!B98=0,'Suivi de perte de poids'!B97+5,'Suivi de perte de poids'!B98))","v":"00:00:00"},{"$f":"'Suivi de perte de poids'!C98","v":0}]
[{"$f":"IF(('Suivi de perte de poids'!C99=0)*('Suivi de perte de poids'!C98=0),TRUE)","v":true},{"$f":"IF(A78,0,IF('Suivi de perte de poids'!B99=0,'Suivi de perte de poids'!B98+5,'Suivi de perte de poids'!B99))","v":"00:00:00"},{"$f":"'Suivi de perte de poids'!C99","v":0}]
[{"$f":"IF(('Suivi de perte de poids'!C100=0)*('Suivi de perte de poids'!C99=0),TRUE)","v":true},{"$f":"IF(A79,0,IF('Suivi de perte de poids'!B100=0,'Suivi de perte de poids'!B99+5,'Suivi de perte de poids'!B100))","v":"00:00:00"},{"$f":"'Suivi de perte de poids'!C100","v":0}]
[{"$f":"IF(('Suivi de perte de poids'!C101=0)*('Suivi de perte de poids'!C100=0),TRUE)","v":true},{"$f":"IF(A80,0,IF('Suivi de perte de poids'!B101=0,'Suivi de perte de poids'!B100+5,'Suivi de perte de poids'!B101))","v":"00:00:00"},{"$f":"'Suivi de perte de poids'!C101","v":0}]
[{"$f":"IF(('Suivi de perte de poids'!C102=0)*('Suivi de perte de poids'!C101=0),TRUE)","v":true},{"$f":"IF(A81,0,IF('Suivi de perte de poids'!B102=0,'Suivi de perte de poids'!B101+5,'Suivi de perte de poids'!B102))","v":"00:00:00"},{"$f":"'Suivi de perte de poids'!C102","v":0}]
[{"$f":"IF(('Suivi de perte de poids'!C103=0)*('Suivi de perte de poids'!C102=0),TRUE)","v":true},{"$f":"IF(A82,0,IF('Suivi de perte de poids'!B103=0,'Suivi de perte de poids'!B102+5,'Suivi de perte de poids'!B103))","v":"00:00:00"},{"$f":"'Suivi de perte de poids'!C103","v":0}]
[{"$f":"IF(('Suivi de perte de poids'!C104=0)*('Suivi de perte de poids'!C103=0),TRUE)","v":true},{"$f":"IF(A83,0,IF('Suivi de perte de poids'!B104=0,'Suivi de perte de poids'!B103+5,'Suivi de perte de poids'!B104))","v":"00:00:00"},{"$f":"'Suivi de perte de poids'!C104","v":0}]
[{"$f":"IF(('Suivi de perte de poids'!C105=0)*('Suivi de perte de poids'!C104=0),TRUE)","v":true},{"$f":"IF(A84,0,IF('Suivi de perte de poids'!B105=0,'Suivi de perte de poids'!B104+5,'Suivi de perte de poids'!B105))","v":"00:00:00"},{"$f":"'Suivi de perte de poids'!C105","v":0}]
[{"$f":"IF(('Suivi de perte de poids'!C106=0)*('Suivi de perte de poids'!C105=0),TRUE)","v":true},{"$f":"IF(A85,0,IF('Suivi de perte de poids'!B106=0,'Suivi de perte de poids'!B105+5,'Suivi de perte de poids'!B106))","v":"00:00:00"},{"$f":"'Suivi de perte de poids'!C106","v":0}]
[{"$f":"IF(('Suivi de perte de poids'!C107=0)*('Suivi de perte de poids'!C106=0),TRUE)","v":true},{"$f":"IF(A86,0,IF('Suivi de perte de poids'!B107=0,'Suivi de perte de poids'!B106+5,'Suivi de perte de poids'!B107))","v":"00:00:00"},{"$f":"'Suivi de perte de poids'!C107","v":0}]
[{"$f":"IF(('Suivi de perte de poids'!C108=0)*('Suivi de perte de poids'!C107=0),TRUE)","v":true},{"$f":"IF(A87,0,IF('Suivi de perte de poids'!B108=0,'Suivi de perte de poids'!B107+5,'Suivi de perte de poids'!B108))","v":"00:00:00"},{"$f":"'Suivi de perte de poids'!C108","v":0}]
[{"$f":"IF(('Suivi de perte de poids'!C109=0)*('Suivi de perte de poids'!C108=0),TRUE)","v":true},{"$f":"IF(A88,0,IF('Suivi de perte de poids'!B109=0,'Suivi de perte de poids'!B108+5,'Suivi de perte de poids'!B109))","v":"00:00:00"},{"$f":"'Suivi de perte de poids'!C109","v":0}]
[{"$f":"IF(('Suivi de perte de poids'!C110=0)*('Suivi de perte de poids'!C109=0),TRUE)","v":true},{"$f":"IF(A89,0,IF('Suivi de perte de poids'!B110=0,'Suivi de perte de poids'!B109+5,'Suivi de perte de poids'!B110))","v":"00:00:00"},{"$f":"'Suivi de perte de poids'!C110","v":0}]
[{"$f":"IF(('Suivi de perte de poids'!C111=0)*('Suivi de perte de poids'!C110=0),TRUE)","v":true},{"$f":"IF(A90,0,IF('Suivi de perte de poids'!B111=0,'Suivi de perte de poids'!B110+5,'Suivi de perte de poids'!B111))","v":"00:00:00"},{"$f":"'Suivi de perte de poids'!C111","v":0}]
[{"$f":"IF(('Suivi de perte de poids'!C112=0)*('Suivi de perte de poids'!C111=0),TRUE)","v":true},{"$f":"IF(A91,0,IF('Suivi de perte de poids'!B112=0,'Suivi de perte de poids'!B111+5,'Suivi de perte de poids'!B112))","v":"00:00:00"},{"$f":"'Suivi de perte de poids'!C112","v":0}]
[{"$f":"IF(('Suivi de perte de poids'!C113=0)*('Suivi de perte de poids'!C112=0),TRUE)","v":true},{"$f":"IF(A92,0,IF('Suivi de perte de poids'!B113=0,'Suivi de perte de poids'!B112+5,'Suivi de perte de poids'!B113))","v":"00:00:00"},{"$f":"'Suivi de perte de poids'!C113","v":0}]
[{"$f":"IF(('Suivi de perte de poids'!C114=0)*('Suivi de perte de poids'!C113=0),TRUE)","v":true},{"$f":"IF(A93,0,IF('Suivi de perte de poids'!B114=0,'Suivi de perte de poids'!B113+5,'Suivi de perte de poids'!B114))","v":"00:00:00"},{"$f":"'Suivi de perte de poids'!C114","v":0}]
[{"$f":"IF(('Suivi de perte de poids'!C115=0)*('Suivi de perte de poids'!C114=0),TRUE)","v":true},{"$f":"IF(A94,0,IF('Suivi de perte de poids'!B115=0,'Suivi de perte de poids'!B114+5,'Suivi de perte de poids'!B115))","v":"00:00:00"},{"$f":"'Suivi de perte de poids'!C115","v":0}]
[{"$f":"IF(('Suivi de perte de poids'!C116=0)*('Suivi de perte de poids'!C115=0),TRUE)","v":true},{"$f":"IF(A95,0,IF('Suivi de perte de poids'!B116=0,'Suivi de perte de poids'!B115+5,'Suivi de perte de poids'!B116))","v":"00:00:00"},{"$f":"'Suivi de perte de poids'!C116","v":0}]
[{"$f":"IF(('Suivi de perte de poids'!C117=0)*('Suivi de perte de poids'!C116=0),TRUE)","v":true},{"$f":"IF(A96,0,IF('Suivi de perte de poids'!B117=0,'Suivi de perte de poids'!B116+5,'Suivi de perte de poids'!B117))","v":"00:00:00"},{"$f":"'Suivi de perte de poids'!C117","v":0}]
[{"$f":"IF(('Suivi de perte de poids'!C118=0)*('Suivi de perte de poids'!C117=0),TRUE)","v":true},{"$f":"IF(A97,0,IF('Suivi de perte de poids'!B118=0,'Suivi de perte de poids'!B117+5,'Suivi de perte de poids'!B118))","v":"00:00:00"},{"$f":"'Suivi de perte de poids'!C118","v":0}]
[{"$f":"IF(('Suivi de perte de poids'!C119=0)*('Suivi de perte de poids'!C118=0),TRUE)","v":true},{"$f":"IF(A98,0,IF('Suivi de perte de poids'!B119=0,'Suivi de perte de poids'!B118+5,'Suivi de perte de poids'!B119))","v":"00:00:00"},{"$f":"'Suivi de perte de poids'!C119","v":0}]
[{"$f":"IF(('Suivi de perte de poids'!C120=0)*('Suivi de perte de poids'!C119=0),TRUE)","v":true},{"$f":"IF(A99,0,IF('Suivi de perte de poids'!B120=0,'Suivi de perte de poids'!B119+5,'Suivi de perte de poids'!B120))","v":"00:00:00"},{"$f":"'Suivi de perte de poids'!C120","v":0}]
[{"$f":"IF(('Suivi de perte de poids'!C121=0)*('Suivi de perte de poids'!C120=0),TRUE)","v":true},{"$f":"IF(A100,0,IF('Suivi de perte de poids'!B121=0,'Suivi de perte de poids'!B120+5,'Suivi de perte de poids'!B121))","v":"00:00:00"},{"$f":"'Suivi de perte de poids'!C121","v":0}]
[{"$f":"IF(('Suivi de perte de poids'!C122=0)*('Suivi de perte de poids'!C121=0),TRUE)","v":true},{"$f":"IF(A101,0,IF('Suivi de perte de poids'!B122=0,'Suivi de perte de poids'!B121+5,'Suivi de perte de poids'!B122))","v":"00:00:00"},{"$f":"'Suivi de perte de poids'!C122","v":0}]
[{"$f":"IF(('Suivi de perte de poids'!C123=0)*('Suivi de perte de poids'!C122=0),TRUE)","v":true},{"$f":"IF(A102,0,IF('Suivi de perte de poids'!B123=0,'Suivi de perte de poids'!B122+5,'Suivi de perte de poids'!B123))","v":"00:00:00"},{"$f":"'Suivi de perte de poids'!C123","v":0}]
[{"$f":"IF(('Suivi de perte de poids'!C124=0)*('Suivi de perte de poids'!C123=0),TRUE)","v":true},{"$f":"IF(A103,0,IF('Suivi de perte de poids'!B124=0,'Suivi de perte de poids'!B123+5,'Suivi de perte de poids'!B124))","v":"00:00:00"},{"$f":"'Suivi de perte de poids'!C124","v":0}]
[{"$f":"IF(('Suivi de perte de poids'!C125=0)*('Suivi de perte de poids'!C124=0),TRUE)","v":true},{"$f":"IF(A104,0,IF('Suivi de perte de poids'!B125=0,'Suivi de perte de poids'!B124+5,'Suivi de perte de poids'!B125))","v":"00:00:00"},{"$f":"'Suivi de perte de poids'!C125","v":0}]
[{"$f":"IF(('Suivi de perte de poids'!C126=0)*('Suivi de perte de poids'!C125=0),TRUE)","v":true},{"$f":"IF(A105,0,IF('Suivi de perte de poids'!B126=0,'Suivi de perte de poids'!B125+5,'Suivi de perte de poids'!B126))","v":"00:00:00"},{"$f":"'Suivi de perte de poids'!C126","v":0}]
[{"$f":"IF(('Suivi de perte de poids'!C127=0)*('Suivi de perte de poids'!C126=0),TRUE)","v":true},{"$f":"IF(A106,0,IF('Suivi de perte de poids'!B127=0,'Suivi de perte de poids'!B126+5,'Suivi de perte de poids'!B127))","v":"00:00:00"},{"$f":"'Suivi de perte de poids'!C127","v":0}]
[{"$f":"IF(('Suivi de perte de poids'!C128=0)*('Suivi de perte de poids'!C127=0),TRUE)","v":true},{"$f":"IF(A107,0,IF('Suivi de perte de poids'!B128=0,'Suivi de perte de poids'!B127+5,'Suivi de perte de poids'!B128))","v":"00:00:00"},{"$f":"'Suivi de perte de poids'!C128","v":0}]
[{"$f":"IF(('Suivi de perte de poids'!C129=0)*('Suivi de perte de poids'!C128=0),TRUE)","v":true},{"$f":"IF(A108,0,IF('Suivi de perte de poids'!B129=0,'Suivi de perte de poids'!B128+5,'Suivi de perte de poids'!B129))","v":"00:00:00"},{"$f":"'Suivi de perte de poids'!C129","v":0}]